[Event "Late-Titled-Tuesday-Blitz-February-20-2024"]
[Site "Chess.com"]
[Date "2024.02.20"]
[Round "5"]
[White "JonSnowNW1"]
[Black "AndresDelgado77"]
[Result "1-0"]
[WhiteElo "2500"]
[BlackElo "2271"]
[TimeControl "180+1"]
[EndTime "14:56:49 PST"]
[Termination "JonSnowNW1 won on time"]

1. e4 {[%clk 0:03:00.9]} 1... e6 {[%clk 0:02:51.1]} 2. d4 {[%clk 0:02:59.1]}
2... d5 {[%clk 0:02:50.5]} 3. Nc3 {[%clk 0:02:58.1]} 3... Nf6 {[%clk 0:02:50.2]}
4. e5 {[%clk 0:02:57.6]} 4... Nfd7 {[%clk 0:02:50]} 5. f4 {[%clk 0:02:57.9]}
5... c5 {[%clk 0:02:49.3]} 6. Nf3 {[%clk 0:02:58.5]} 6... Nc6 {[%clk 0:02:49.5]}
7. Be3 {[%clk 0:02:57]} 7... cxd4 {[%clk 0:02:46]} 8. Nxd4 {[%clk 0:02:55.9]}
8... Qb6 {[%clk 0:02:45.8]} 9. Qd2 {[%clk 0:02:43.3]} 9... Qxb2 {[%clk
0:02:45.3]} 10. Rb1 {[%clk 0:02:42.4]} 10... Qa3 {[%clk 0:02:45.1]} 11. Ncb5
{[%clk 0:02:26.2]} 11... Qxa2 {[%clk 0:02:43.4]} 12. Qc1 {[%clk 0:02:22.5]}
12... Qa5+ {[%clk 0:02:37.5]} 13. Bd2 {[%clk 0:02:16.5]} 13... Qd8 {[%clk
0:02:36.4]} 14. Bd3 {[%clk 0:02:11]} 14... Nxd4 {[%clk 0:02:34.1]} 15. Nxd4
{[%clk 0:02:11.9]} 15... Nxe5 {[%clk 0:02:34.1]} 16. fxe5 {[%clk 0:02:02.1]}
16... Qh4+ {[%clk 0:02:33.4]} 17. g3 {[%clk 0:02:02.6]} 17... Qxd4 {[%clk
0:02:33.1]} 18. Bb5+ {[%clk 0:02:02.8]} 18... Kd8 {[%clk 0:02:30.5]} 19. Bg5+
{[%clk 0:01:54.8]} 19... Kc7 {[%clk 0:02:06.1]} 20. Be3 {[%clk 0:01:52.3]} 20...
Qc3+ {[%clk 0:01:56.1]} 21. Kf1 {[%clk 0:01:37.9]} 21... Ba3 {[%clk 0:01:43.9]}
22. Qe1 {[%clk 0:01:16.1]} 22... Qxe1+ {[%clk 0:01:40.7]} 23. Kxe1 {[%clk
0:01:16.9]} 23... a6 {[%clk 0:01:31.5]} 24. Bd3 {[%clk 0:01:14.3]} 24... b5
{[%clk 0:01:28.8]} 25. Rf1 {[%clk 0:01:12.9]} 25... Rf8 {[%clk 0:01:19.7]} 26.
Ke2 {[%clk 0:01:06.7]} 26... h6 {[%clk 0:01:13.8]} 27. Ra1 {[%clk 0:01:04.7]}
27... Bb2 {[%clk 0:01:10.5]} 28. Ra2 {[%clk 0:01:04.1]} 28... Bxe5 {[%clk
0:01:09.6]} 29. Bxb5 {[%clk 0:01:01.3]} 29... Bb7 {[%clk 0:01:00.9]} 30. Bd3
{[%clk 0:00:59.6]} 30... d4 {[%clk 0:00:57.6]} 31. Bd2 {[%clk 0:00:58.8]} 31...
f5 {[%clk 0:00:53.8]} 32. Ba5+ {[%clk 0:00:58]} 32... Kd7 {[%clk 0:00:43.1]} 33.
Rb2 {[%clk 0:00:50.6]} 33... Rfb8 {[%clk 0:00:31.9]} 34. g4 {[%clk 0:00:35]}
34... g6 {[%clk 0:00:31.2]} 35. gxf5 {[%clk 0:00:34.8]} 35... gxf5 {[%clk
0:00:27.1]} 36. Rbb1 {[%clk 0:00:21.1]} 36... Bc6 {[%clk 0:00:22.3]} 37. Rbe1
{[%clk 0:00:13.8]} 37... Bxh2 {[%clk 0:00:14.4]} 38. Kd2 {[%clk 0:00:12]} 38...
Bg3 {[%clk 0:00:11.9]} 39. Re2 {[%clk 0:00:10.9]} 39... Bh4 {[%clk 0:00:10.1]}
40. Bc4 {[%clk 0:00:09.6]} 40... Bg5+ {[%clk 0:00:09.6]} 41. Kd3 {[%clk
0:00:09.2]} 41... Be4+ {[%clk 0:00:08.6]} 42. Rxe4 {[%clk 0:00:08.7]} 42...
fxe4+ {[%clk 0:00:09]} 43. Kxe4 {[%clk 0:00:09.3]} 43... Rf8 {[%clk 0:00:08.6]}
44. Rb1 {[%clk 0:00:08.6]} 44... Rf4+ {[%clk 0:00:08.2]} 45. Ke5 {[%clk
0:00:07.4]} 45... Raf8 {[%clk 0:00:06.6]} 46. Rb7+ {[%clk 0:00:06.5]} 46... Kc8
{[%clk 0:00:04]} 47. Rc7+ {[%clk 0:00:06.7]} 47... Kb8 {[%clk 0:00:03.6]} 48.
Bxe6 {[%clk 0:00:05.5]} 48... R4f6 {[%clk 0:00:01.8]} 49. Rc6 {[%clk 0:00:04.4]}
49... Bf4+ {[%clk 0:00:01.8]} 50. Kd5 {[%clk 0:00:04.5]} 50... Rd8+ {[%clk
0:00:01.5]} 51. Kc4 {[%clk 0:00:03.9]} 1-0

[Event "Late-Titled-Tuesday-Blitz-February-20-2024"]
[Site "Chess.com"]
[Date "2024.02.20"]
[Round "5"]
[White "mbojan"]
[Black "BilodeauA"]
[Result "1/2-1/2"]
[WhiteElo "2889"]
[BlackElo "3035"]
[TimeControl "180+1"]
[EndTime "14:56:51 PST"]
[Termination "Game drawn by repetition"]

1. e4 {[%clk 0:03:00.9]} 1... e5 {[%clk 0:02:59.9]} 2. Nf3 {[%clk 0:03:00.9]}
2... Nc6 {[%clk 0:03:00.6]} 3. Bb5 {[%clk 0:03:01]} 3... a6 {[%clk 0:03:00.9]}
4. Ba4 {[%clk 0:03:01]} 4... d6 {[%clk 0:03:01.5]} 5. O-O {[%clk 0:03:00.3]}
5... Bd7 {[%clk 0:03:02.1]} 6. c4 {[%clk 0:03:00.7]} 6... Nge7 {[%clk
0:03:02.6]} 7. d4 {[%clk 0:02:40.6]} 7... Ng6 {[%clk 0:03:02.7]} 8. Nc3 {[%clk
0:02:36.9]} 8... Be7 {[%clk 0:03:02.4]} 9. dxe5 {[%clk 0:02:35.1]} 9... dxe5
{[%clk 0:02:59.7]} 10. Nd5 {[%clk 0:02:32.9]} 10... O-O {[%clk 0:02:59.5]} 11.
Be3 {[%clk 0:02:30.3]} 11... f5 {[%clk 0:02:43.9]} 12. exf5 {[%clk 0:02:12.1]}
12... Bxf5 {[%clk 0:02:44.8]} 13. Nxe7+ {[%clk 0:01:47.5]} 13... Qxe7 {[%clk
0:02:41.6]} 14. Qd5+ {[%clk 0:01:47.4]} 14... Be6 {[%clk 0:02:38.6]} 15. Qc5
{[%clk 0:01:47.7]} 15... Qxc5 {[%clk 0:01:41.5]} 16. Bxc5 {[%clk 0:01:48.6]}
16... Rfd8 {[%clk 0:01:39.1]} 17. Bxc6 {[%clk 0:01:43.4]} 17... bxc6 {[%clk
0:01:38.7]} 18. b3 {[%clk 0:01:43.1]} 18... Bg4 {[%clk 0:01:32.6]} 19. Ng5
{[%clk 0:01:07.3]} 19... Nf4 {[%clk 0:01:33]} 20. Be3 {[%clk 0:00:44.1]} 20...
Ne2+ {[%clk 0:01:23.9]} 21. Kh1 {[%clk 0:00:44.4]} 21... Bf5 {[%clk 0:01:24.7]}
22. Nf3 {[%clk 0:00:38.9]} 22... Re8 {[%clk 0:01:08.8]} 23. Rfd1 {[%clk
0:00:38.2]} 23... Bg4 {[%clk 0:01:04.2]} 24. Rd2 {[%clk 0:00:38.5]} 24... Nc3
{[%clk 0:00:46.9]} 25. h3 {[%clk 0:00:37.3]} 25... Bf5 {[%clk 0:00:38.5]} 26.
Ng5 {[%clk 0:00:31.2]} 26... h6 {[%clk 0:00:37.7]} 27. Rc1 {[%clk 0:00:31.8]}
27... Nxa2 {[%clk 0:00:33.9]} 28. Rxa2 {[%clk 0:00:31.3]} 28... hxg5 {[%clk
0:00:34.7]} 29. Rca1 {[%clk 0:00:28.9]} 29... Reb8 {[%clk 0:00:33.7]} 30. Rxa6
{[%clk 0:00:27.7]} 30... Rxa6 {[%clk 0:00:33.6]} 31. Rxa6 {[%clk 0:00:28.6]}
31... Rxb3 {[%clk 0:00:25.8]} 32. Bxg5 {[%clk 0:00:24.9]} 32... Bd7 {[%clk
0:00:22.6]} 33. Be3 {[%clk 0:00:22.6]} 33... Rc3 {[%clk 0:00:19.8]} 34. c5
{[%clk 0:00:22.9]} 34... Kf7 {[%clk 0:00:20.2]} 35. Ra7 {[%clk 0:00:23.4]} 35...
Ke6 {[%clk 0:00:18.9]} 36. Rxc7 {[%clk 0:00:23.9]} 36... Rc2 {[%clk 0:00:19.6]}
37. Ra7 {[%clk 0:00:24.4]} 37... g6 {[%clk 0:00:19.5]} 38. Kh2 {[%clk 0:00:25]}
38... Rb2 {[%clk 0:00:19.2]} 39. Kg3 {[%clk 0:00:25.6]} 39... Rb1 {[%clk
0:00:18.8]} 40. Ra2 {[%clk 0:00:25.8]} 40... Rd1 {[%clk 0:00:18.7]} 41. Rb2
{[%clk 0:00:26]} 41... Kf6 {[%clk 0:00:17.2]} 42. Rb7 {[%clk 0:00:25.2]} 42...
Be6 {[%clk 0:00:17.4]} 43. h4 {[%clk 0:00:22.6]} 43... Bd5 {[%clk 0:00:18.1]}
44. Kg4 {[%clk 0:00:17.3]} 44... Be6+ {[%clk 0:00:18.1]} 45. Kg3 {[%clk
0:00:16.3]} 45... Bd5 {[%clk 0:00:18.7]} 46. Rc7 {[%clk 0:00:16.1]} 46... Rg1
{[%clk 0:00:17.5]} 47. f3 {[%clk 0:00:13.3]} 47... Rb1 {[%clk 0:00:18.2]} 48.
Bg5+ {[%clk 0:00:12.6]} 48... Kf5 {[%clk 0:00:17.1]} 49. Re7 {[%clk 0:00:07.9]}
49... e4 {[%clk 0:00:15.2]} 50. Kh3 {[%clk 0:00:02.7]} 50... Rh1+ {[%clk
0:00:12.5]} 51. Kg3 {[%clk 0:00:03.4]} 51... exf3 {[%clk 0:00:13.2]} 52. gxf3
{[%clk 0:00:04.3]} 52... Rf1 {[%clk 0:00:12.2]} 53. f4 {[%clk 0:00:04.7]} 53...
Rf3+ {[%clk 0:00:12.4]} 54. Kh2 {[%clk 0:00:03]} 54... Kg4 {[%clk 0:00:13.3]}
55. Kg1 {[%clk 0:00:03.3]} 55... Bc4 {[%clk 0:00:11.3]} 56. Re1 {[%clk 0:00:02]}
56... Kg3 {[%clk 0:00:10.7]} 57. f5 {[%clk 0:00:02.8]} 57... gxf5 {[%clk
0:00:04.5]} 58. Re3 {[%clk 0:00:03.2]} 58... Rxe3 {[%clk 0:00:03.6]} 59. Bxe3
{[%clk 0:00:04.1]} 59... Kxh4 {[%clk 0:00:04.5]} 60. Kf2 {[%clk 0:00:04.2]}
60... Kg4 {[%clk 0:00:05.2]} 61. Bd4 {[%clk 0:00:04.8]} 61... f4 {[%clk
0:00:05.6]} 62. Be5 {[%clk 0:00:05.3]} 62... Kf5 {[%clk 0:00:06.2]} 63. Bd6
{[%clk 0:00:06.2]} 63... Ke4 {[%clk 0:00:07]} 64. Bf8 {[%clk 0:00:06.7]} 64...
Bd5 {[%clk 0:00:07.9]} 65. Be7 {[%clk 0:00:07.4]} 65... Kd4 {[%clk 0:00:08.5]}
66. Bf8 {[%clk 0:00:08.2]} 66... Kd3 {[%clk 0:00:09.4]} 67. Bd6 {[%clk
0:00:08.8]} 67... f3 {[%clk 0:00:10.1]} 68. Be7 {[%clk 0:00:09.3]} 68... Kc4
{[%clk 0:00:11]} 69. Bd6 {[%clk 0:00:09.9]} 69... Kb5 {[%clk 0:00:11.9]} 70. Be7
{[%clk 0:00:10.6]} 70... Kc4 {[%clk 0:00:12.8]} 71. Bd6 {[%clk 0:00:11.3]} 71...
Kb5 {[%clk 0:00:13.7]} 72. Be7 {[%clk 0:00:12]} 72... Kc4 {[%clk 0:00:14.3]}
1/2-1/2

[Event "Late-Titled-Tuesday-Blitz-February-20-2024"]
[Site "Chess.com"]
[Date "2024.02.20"]
[Round "5"]
[White "SouS007"]
[Black "alexrustemov"]
[Result "0-1"]
[WhiteElo "2490"]
[BlackElo "2871"]
[TimeControl "180+1"]
[EndTime "14:56:57 PST"]
[Termination "alexrustemov won by checkmate"]

1. e4 {[%clk 0:03:00.9]} 1... e6 {[%clk 0:02:59.9]} 2. d4 {[%clk 0:02:58.9]}
2... d5 {[%clk 0:03:00.8]} 3. Nc3 {[%clk 0:02:58.6]} 3... dxe4 {[%clk
0:03:01.1]} 4. Nxe4 {[%clk 0:02:59.5]} 4... Bd7 {[%clk 0:03:01.7]} 5. Nf3 {[%clk
0:02:58.7]} 5... Bc6 {[%clk 0:03:02.1]} 6. Bd3 {[%clk 0:02:59.3]} 6... Nd7
{[%clk 0:03:02.6]} 7. O-O {[%clk 0:02:56.8]} 7... Ngf6 {[%clk 0:03:03.2]} 8. Ng3
{[%clk 0:02:57.1]} 8... Be7 {[%clk 0:03:03.4]} 9. Re1 {[%clk 0:02:43]} 9... O-O
{[%clk 0:03:03.1]} 10. c3 {[%clk 0:02:41.4]} 10... b6 {[%clk 0:03:02.7]} 11. Bf4
{[%clk 0:02:39.6]} 11... Bb7 {[%clk 0:03:02.4]} 12. Ne5 {[%clk 0:02:37.1]} 12...
c5 {[%clk 0:03:02.1]} 13. Nxd7 {[%clk 0:02:31.1]} 13... Qxd7 {[%clk 0:03:01.7]}
14. Be5 {[%clk 0:02:31.6]} 14... cxd4 {[%clk 0:02:48.1]} 15. Bxd4 {[%clk
0:02:26.1]} 15... Qc6 {[%clk 0:02:37.7]} 16. Ne4 {[%clk 0:02:24.3]} 16... Rfd8
{[%clk 0:02:20.7]} 17. Nxf6+ {[%clk 0:02:21.3]} 17... Bxf6 {[%clk 0:02:20.3]}
18. Be4 {[%clk 0:02:21.6]} 18... Qc7 {[%clk 0:02:14.9]} 19. Qf3 {[%clk
0:01:38.6]} 19... Bxe4 {[%clk 0:02:11.7]} 20. Rxe4 {[%clk 0:01:37.7]} 20... Bxd4
{[%clk 0:02:10.4]} 21. Rxd4 {[%clk 0:01:37.6]} 21... Rxd4 {[%clk 0:02:01.3]} 22.
Qxa8+ {[%clk 0:01:22.6]} 22... Qd8 {[%clk 0:01:44.6]} 23. Qf3 {[%clk 0:01:18.3]}
23... Rd3 {[%clk 0:01:39.4]} 24. Qg4 {[%clk 0:01:01.6]} 24... Rd2 {[%clk
0:01:38.3]} 25. h3 {[%clk 0:00:56]} 25... Rxb2 {[%clk 0:01:31.5]} 26. Rd1 {[%clk
0:00:55.5]} 26... Rd2 {[%clk 0:01:30.7]} 27. Rxd2 {[%clk 0:00:51.2]} 27... Qxd2
{[%clk 0:01:31.6]} 28. Qa4 {[%clk 0:00:51]} 28... Qe1+ {[%clk 0:01:22.4]} 29.
Kh2 {[%clk 0:00:50.4]} 29... Qe5+ {[%clk 0:01:21.6]} 30. g3 {[%clk 0:00:49.9]}
30... Qb8 {[%clk 0:01:21.9]} 31. Qd7 {[%clk 0:00:47.2]} 31... g6 {[%clk
0:01:21.5]} 32. c4 {[%clk 0:00:45.2]} 32... h5 {[%clk 0:01:20.6]} 33. h4 {[%clk
0:00:45]} 33... Kg7 {[%clk 0:01:11.2]} 34. Qd4+ {[%clk 0:00:40.5]} 34... Kg8
{[%clk 0:01:09.9]} 35. Qd7 {[%clk 0:00:40.4]} 35... a6 {[%clk 0:01:09]} 36. a4
{[%clk 0:00:39.3]} 36... a5 {[%clk 0:01:01.5]} 37. Qd4 {[%clk 0:00:36.1]} 37...
Qc7 {[%clk 0:01:00.7]} 38. Kg1 {[%clk 0:00:33.1]} 38... Qc5 {[%clk 0:00:59.8]}
39. Qd3 {[%clk 0:00:28.7]} 39... Qb4 {[%clk 0:00:56.4]} 40. Qd8+ {[%clk
0:00:27.5]} 40... Kg7 {[%clk 0:00:54.5]} 41. Qd4+ {[%clk 0:00:27.6]} 41... Kh7
{[%clk 0:00:52.6]} 42. Qd7 {[%clk 0:00:25.5]} 42... Qe1+ {[%clk 0:00:42.2]} 43.
Kg2 {[%clk 0:00:24.4]} 43... Qe4+ {[%clk 0:00:42.3]} 44. Kg1 {[%clk 0:00:24.4]}
44... Qf5 {[%clk 0:00:36]} 45. Qc7 {[%clk 0:00:24.5]} 45... Qb1+ {[%clk
0:00:31.1]} 46. Kh2 {[%clk 0:00:23.5]} 46... Kg8 {[%clk 0:00:30.4]} 47. Qd8+
{[%clk 0:00:22.5]} 47... Kg7 {[%clk 0:00:30.3]} 48. Qd4+ {[%clk 0:00:22.7]}
48... Kh7 {[%clk 0:00:29.2]} 49. Qd7 {[%clk 0:00:22]} 49... Qf5 {[%clk
0:00:27.9]} 50. Kg1 {[%clk 0:00:21.1]} 50... Qf6 {[%clk 0:00:19.5]} 51. Qc7
{[%clk 0:00:19.8]} 51... Kg7 {[%clk 0:00:16.7]} 52. Qxb6 {[%clk 0:00:18.9]}
52... Qa1+ {[%clk 0:00:16.7]} 53. Kg2 {[%clk 0:00:18.8]} 53... Qxa4 {[%clk
0:00:17.2]} 54. Qd4+ {[%clk 0:00:17.6]} 54... Kg8 {[%clk 0:00:15.5]} 55. Qd8+
{[%clk 0:00:17.3]} 55... Kh7 {[%clk 0:00:15.7]} 56. Qc7 {[%clk 0:00:16.9]} 56...
Qe8 {[%clk 0:00:12.4]} 57. Qxa5 {[%clk 0:00:16.7]} 57... Qc6+ {[%clk 0:00:12.4]}
58. Kh2 {[%clk 0:00:15.8]} 58... Qxc4 {[%clk 0:00:12.9]} 59. Qa7 {[%clk
0:00:15.5]} 59... e5 {[%clk 0:00:12.2]} 60. Kg1 {[%clk 0:00:14.7]} 60... Qe6
{[%clk 0:00:12.6]} 61. Kh2 {[%clk 0:00:13.5]} 61... Kg7 {[%clk 0:00:13.1]} 62.
Kg1 {[%clk 0:00:13.6]} 62... Kf6 {[%clk 0:00:13.6]} 63. Kg2 {[%clk 0:00:13.5]}
63... Kf5 {[%clk 0:00:13.7]} 64. Kg1 {[%clk 0:00:10.9]} 64... Qd5 {[%clk
0:00:13.6]} 65. Qc7 {[%clk 0:00:07.3]} 65... Kg4 {[%clk 0:00:13.6]} 66. Qc8+
{[%clk 0:00:06.9]} 66... f5 {[%clk 0:00:13.3]} 67. Qa6 {[%clk 0:00:05.9]} 67...
Qf3 {[%clk 0:00:11.2]} 68. Qxg6+ {[%clk 0:00:05.6]} 68... Kh3 {[%clk 0:00:11.5]}
69. Kf1 {[%clk 0:00:02.2]} 69... Qd1# {[%clk 0:00:11.6]} 0-1

[Event "Late-Titled-Tuesday-Blitz-February-20-2024"]
[Site "Chess.com"]
[Date "2024.02.20"]
[Round "5"]
[White "Real_taiatai"]
[Black "HamedWafa4"]
[Result "0-1"]
[WhiteElo "2453"]
[BlackElo "2734"]
[TimeControl "180+1"]
[EndTime "14:56:58 PST"]
[Termination "HamedWafa4 won by resignation"]

1. e4 {[%clk 0:03:00.9]} 1... e5 {[%clk 0:02:46.1]} 2. Nf3 {[%clk 0:03:01.2]}
2... Nc6 {[%clk 0:02:45.9]} 3. Bb5 {[%clk 0:03:01.7]} 3... a6 {[%clk 0:02:45.7]}
4. Ba4 {[%clk 0:03:02.1]} 4... Nf6 {[%clk 0:02:45]} 5. O-O {[%clk 0:03:02]} 5...
Be7 {[%clk 0:02:45]} 6. d3 {[%clk 0:03:00.1]} 6... d6 {[%clk 0:02:43.2]} 7. c3
{[%clk 0:02:59.4]} 7... O-O {[%clk 0:02:43]} 8. Re1 {[%clk 0:02:59.5]} 8... h6
{[%clk 0:02:39.3]} 9. Nbd2 {[%clk 0:02:59]} 9... b5 {[%clk 0:02:37.4]} 10. Bc2
{[%clk 0:02:58.8]} 10... Nb8 {[%clk 0:02:36.9]} 11. Nf1 {[%clk 0:02:59.1]} 11...
Nbd7 {[%clk 0:02:36.9]} 12. a4 {[%clk 0:02:52.6]} 12... Bb7 {[%clk 0:02:36]} 13.
Ng3 {[%clk 0:02:53.1]} 13... Re8 {[%clk 0:02:35.5]} 14. Nf5 {[%clk 0:02:52.2]}
14... Bf8 {[%clk 0:02:35.4]} 15. h3 {[%clk 0:02:50.3]} 15... Kh7 {[%clk
0:02:35.2]} 16. d4 {[%clk 0:02:40.9]} 16... g6 {[%clk 0:02:33.6]} 17. Ng3 {[%clk
0:02:28.9]} 17... c5 {[%clk 0:02:31]} 18. b3 {[%clk 0:02:13.6]} 18... Bg7 {[%clk
0:02:27.6]} 19. Bb2 {[%clk 0:02:14]} 19... Qc7 {[%clk 0:02:09.8]} 20. Bd3 {[%clk
0:02:10.5]} 20... c4 {[%clk 0:02:06.1]} 21. Bf1 {[%clk 0:02:08.4]} 21... exd4
{[%clk 0:02:02.1]} 22. Nxd4 {[%clk 0:02:04.5]} 22... bxa4 {[%clk 0:01:56.8]} 23.
Bxc4 {[%clk 0:02:03.7]} 23... Ne5 {[%clk 0:01:55.7]} 24. Rxa4 {[%clk 0:02:01.4]}
24... Nxc4 {[%clk 0:01:52.5]} 25. Rxc4 {[%clk 0:02:01.5]} 25... Qe7 {[%clk
0:01:52.4]} 26. h4 {[%clk 0:01:23.9]} 26... d5 {[%clk 0:01:51.2]} 27. Ra4 {[%clk
0:01:16.9]} 27... Nxe4 {[%clk 0:01:42]} 28. h5 {[%clk 0:00:52.7]} 28... Qg5
{[%clk 0:01:31.3]} 29. Nf3 {[%clk 0:00:50.4]} 29... Qf6 {[%clk 0:01:18.8]} 30.
Rb4 {[%clk 0:00:41.3]} 30... Re7 {[%clk 0:01:02.3]} 31. Ba3 {[%clk 0:00:31]}
31... Qxc3 {[%clk 0:00:46.8]} 32. Rb6 {[%clk 0:00:22.1]} 32... Qc7 {[%clk
0:00:35.8]} 33. Bxe7 {[%clk 0:00:18.3]} 33... Qxb6 {[%clk 0:00:35.5]} 34. hxg6+
{[%clk 0:00:18.2]} 34... fxg6 {[%clk 0:00:36.4]} 35. Nxe4 {[%clk 0:00:14.6]}
35... dxe4 {[%clk 0:00:36]} 36. Nh4 {[%clk 0:00:11.6]} 36... Re8 {[%clk
0:00:32.5]} 37. Qd7 {[%clk 0:00:08.2]} 37... Qc6 {[%clk 0:00:33]} 38. Qxc6
{[%clk 0:00:08]} 38... Bxc6 {[%clk 0:00:33.9]} 39. Bc5 {[%clk 0:00:08.6]} 39...
Rb8 {[%clk 0:00:26.5]} 40. b4 {[%clk 0:00:08.9]} 40... Bc3 {[%clk 0:00:25.8]}
41. Rc1 {[%clk 0:00:07]} 41... Bf6 {[%clk 0:00:22.4]} 42. g3 {[%clk 0:00:06.8]}
42... Rc8 {[%clk 0:00:17.9]} 43. Ng2 {[%clk 0:00:06.8]} 43... Bb5 {[%clk
0:00:17.5]} 44. Ne3 {[%clk 0:00:07.1]} 44... Be7 {[%clk 0:00:16.9]} 45. Nd5
{[%clk 0:00:06.7]} 45... Bg5 {[%clk 0:00:11.7]} 46. Rd1 {[%clk 0:00:06.2]} 46...
Rd8 {[%clk 0:00:09.1]} 47. Nc3 {[%clk 0:00:05.6]} 47... Rxd1+ {[%clk 0:00:07.9]}
48. Nxd1 {[%clk 0:00:06.5]} 48... Kg7 {[%clk 0:00:07.6]} 49. Ne3 {[%clk
0:00:07.4]} 49... Bf6 {[%clk 0:00:06.9]} 50. Nd5 {[%clk 0:00:07.7]} 50... Kf7
{[%clk 0:00:06.7]} 51. Nxf6 {[%clk 0:00:07.9]} 51... Kxf6 {[%clk 0:00:07.6]} 52.
Kg2 {[%clk 0:00:08.4]} 52... Kf5 {[%clk 0:00:08.1]} 53. Be3 {[%clk 0:00:08.8]}
53... h5 {[%clk 0:00:07.8]} 54. Bc5 {[%clk 0:00:09.1]} 54... Be2 {[%clk
0:00:08]} 55. Kg1 {[%clk 0:00:08.6]} 55... Bf3 {[%clk 0:00:08.7]} 56. Kf1 {[%clk
0:00:08.8]} 56... Ke5 {[%clk 0:00:08.7]} 57. Kg1 {[%clk 0:00:09.7]} 57... Kd5
{[%clk 0:00:08.7]} 58. Kh2 {[%clk 0:00:10.3]} 58... a5 {[%clk 0:00:07.6]} 59.
Bf8 {[%clk 0:00:10.7]} 59... a4 {[%clk 0:00:07.8]} 60. Bg7 {[%clk 0:00:10.7]}
60... Kc4 {[%clk 0:00:07.8]} 61. Bf8 {[%clk 0:00:10.6]} 61... a3 {[%clk
0:00:06.9]} 62. b5 {[%clk 0:00:11]} 62... a2 {[%clk 0:00:06.9]} 63. Bg7 {[%clk
0:00:11.7]} 63... Kxb5 {[%clk 0:00:07.5]} 64. Kh3 {[%clk 0:00:11.9]} 64... Bg4+
{[%clk 0:00:06.5]} 65. Kh4 {[%clk 0:00:12.6]} 65... Bf5 {[%clk 0:00:07.4]} 66.
Kg5 {[%clk 0:00:13]} 66... Kc4 {[%clk 0:00:07.8]} 67. Kf4 {[%clk 0:00:13.3]}
67... Kb3 {[%clk 0:00:08.3]} 68. Ke3 {[%clk 0:00:14]} 68... Kc2 {[%clk
0:00:08.9]} 69. f3 {[%clk 0:00:13.6]} 69... exf3 {[%clk 0:00:09.1]} 70. Kxf3
{[%clk 0:00:14]} 70... Kb1 {[%clk 0:00:10]} 71. Kf4 {[%clk 0:00:14.4]} 71...
a1=Q {[%clk 0:00:10.6]} 72. Kg5 {[%clk 0:00:15.1]} 72... Qxg7 {[%clk 0:00:10]}
0-1

[Event "Late-Titled-Tuesday-Blitz-February-20-2024"]
[Site "Chess.com"]
[Date "2024.02.20"]
[Round "5"]
[White "Mikasinski"]
[Black "Angry_Twin"]
[Result "0-1"]
[WhiteElo "2682"]
[BlackElo "2981"]
[TimeControl "180+1"]
[EndTime "14:57:01 PST"]
[Termination "Angry_Twin won by resignation"]

1. e4 {[%clk 0:02:56.3]} 1... c5 {[%clk 0:03:00.2]} 2. Nf3 {[%clk 0:02:56.2]}
2... d6 {[%clk 0:03:00.8]} 3. d4 {[%clk 0:02:56.7]} 3... cxd4 {[%clk 0:03:01.7]}
4. Nxd4 {[%clk 0:02:57.2]} 4... Nf6 {[%clk 0:03:02.5]} 5. Nc3 {[%clk 0:02:57.8]}
5... a6 {[%clk 0:03:03.1]} 6. Rg1 {[%clk 0:02:58.2]} 6... h5 {[%clk 0:03:01.7]}
7. h3 {[%clk 0:02:58.4]} 7... e5 {[%clk 0:03:01.4]} 8. Nb3 {[%clk 0:02:58.1]}
8... h4 {[%clk 0:03:01.5]} 9. Be3 {[%clk 0:02:57.7]} 9... Be6 {[%clk 0:02:55.4]}
10. Qd2 {[%clk 0:02:57.3]} 10... Nbd7 {[%clk 0:02:53.4]} 11. O-O-O {[%clk
0:02:55.4]} 11... b5 {[%clk 0:02:53.7]} 12. Bd3 {[%clk 0:02:32.1]} 12... Be7
{[%clk 0:02:42.6]} 13. f4 {[%clk 0:02:31.2]} 13... Rc8 {[%clk 0:01:52]} 14. Kb1
{[%clk 0:02:27.1]} 14... Nb6 {[%clk 0:01:42.8]} 15. f5 {[%clk 0:02:07.3]} 15...
Nc4 {[%clk 0:01:27.2]} 16. Qf2 {[%clk 0:02:04.4]} 16... Nxe3 {[%clk 0:01:26.5]}
17. Qxe3 {[%clk 0:02:01.7]} 17... Bc4 {[%clk 0:01:24.1]} 18. Bxc4 {[%clk
0:01:49]} 18... Rxc4 {[%clk 0:01:16.8]} 19. Nd5 {[%clk 0:01:40.7]} 19... Nxd5
{[%clk 0:01:13.1]} 20. Rxd5 {[%clk 0:01:38.1]} 20... Bg5 {[%clk 0:01:00.2]} 21.
Qa7 {[%clk 0:01:31.3]} 21... O-O {[%clk 0:00:38.4]} 22. Qxa6 {[%clk 0:01:28.4]}
22... Rxe4 {[%clk 0:00:38.5]} 23. Rxd6 {[%clk 0:01:18.6]} 23... Qc7 {[%clk
0:00:30.3]} 24. Rc6 {[%clk 0:01:06]} 24... Qd7 {[%clk 0:00:26.7]} 25. a3 {[%clk
0:00:54.1]} 25... b4 {[%clk 0:00:24.4]} 26. Rf1 {[%clk 0:00:51.2]} 26... bxa3
{[%clk 0:00:17.5]} 27. Nc5 {[%clk 0:00:51.5]} 27... Qd4 {[%clk 0:00:17.5]} 28.
Qxa3 {[%clk 0:00:45]} 28... Re2 {[%clk 0:00:17.8]} 29. Qf3 {[%clk 0:00:31.8]}
29... Re3 {[%clk 0:00:16.4]} 30. Qd1 {[%clk 0:00:27.5]} 30... Qc4 {[%clk
0:00:12.1]} 31. b3 {[%clk 0:00:17.2]} 31... Qc3 {[%clk 0:00:11.9]} 32. Rc7
{[%clk 0:00:07.6]} 32... Ra8 {[%clk 0:00:11]} 33. Na6 {[%clk 0:00:05.9]} 33...
Qa5 {[%clk 0:00:11.1]} 34. Rc6 {[%clk 0:00:04]} 34... Rxa6 {[%clk 0:00:10]} 35.
Rxa6 {[%clk 0:00:04.2]} 35... Qxa6 {[%clk 0:00:10.9]} 36. f6 {[%clk 0:00:03.8]}
36... gxf6 {[%clk 0:00:10.3]} 37. Rf3 {[%clk 0:00:01.4]} 37... Rxf3 {[%clk
0:00:10.4]} 38. Qxf3 {[%clk 0:00:01.9]} 38... Qb5 {[%clk 0:00:09.9]} 39. Kb2
{[%clk 0:00:02.2]} 39... Qc5 {[%clk 0:00:10]} 40. Qc3 {[%clk 0:00:02.3]} 40...
Qxc3+ {[%clk 0:00:09]} 41. Kxc3 {[%clk 0:00:02.9]} 41... f5 {[%clk 0:00:09.8]}
42. Kd3 {[%clk 0:00:03]} 42... Bd8 {[%clk 0:00:09.7]} 43. Kc4 {[%clk 0:00:03]}
43... Kf8 {[%clk 0:00:08.5]} 44. Kd5 {[%clk 0:00:02.9]} 44... f6 {[%clk
0:00:08.4]} 45. c4 {[%clk 0:00:03.1]} 45... Ke7 {[%clk 0:00:08.5]} 46. c5 {[%clk
0:00:03.7]} 46... Ba5 {[%clk 0:00:08]} 47. Kc4 {[%clk 0:00:03.8]} 47... f4
{[%clk 0:00:08.3]} 48. b4 {[%clk 0:00:04.7]} 48... Bxb4 {[%clk 0:00:06.1]} 49.
Kxb4 {[%clk 0:00:05.2]} 49... e4 {[%clk 0:00:07]} 50. Kc3 {[%clk 0:00:04.9]}
50... f5 {[%clk 0:00:05.7]} 51. Kd4 {[%clk 0:00:05.3]} 51... Kd7 {[%clk
0:00:06.3]} 52. Kc3 {[%clk 0:00:04]} 52... Kc6 {[%clk 0:00:06.3]} 53. Kd4 {[%clk
0:00:04.7]} 53... Kc7 {[%clk 0:00:03.1]} 54. Kc3 {[%clk 0:00:02.6]} 54... Kd7
{[%clk 0:00:03.6]} 55. Kc4 {[%clk 0:00:03.1]} 55... Ke6 {[%clk 0:00:03.2]} 56.
Kd4 {[%clk 0:00:02.4]} 56... Kf6 {[%clk 0:00:03.5]} 57. Kd5 {[%clk 0:00:01.6]}
57... f3 {[%clk 0:00:03.9]} 58. c6 {[%clk 0:00:01.3]} 58... fxg2 {[%clk
0:00:03.1]} 59. c7 {[%clk 0:00:01.5]} 59... g1=Q {[%clk 0:00:03.5]} 60. c8=Q
{[%clk 0:00:02.4]} 60... Qd1+ {[%clk 0:00:04.4]} 61. Kc6 {[%clk 0:00:02.3]}
61... Qc1+ {[%clk 0:00:04.8]} 62. Kd7 {[%clk 0:00:03.2]} 62... Qxc8+ {[%clk
0:00:05.5]} 63. Kxc8 {[%clk 0:00:03.9]} 63... e3 {[%clk 0:00:06.4]} 0-1